[Event "GEO-AZE Women Match 2024"]
[Site "Tbilisi"]
[Date "2024.02.28"]
[Round "2.5"]
[White "Khotenashvili, Bella"]
[Black "Balajayeva, Khanim"]
[Result "1/2-1/2"]
[ECO "A28"]
[WhiteElo "2467"]
[BlackElo "2350"]
[Annotator "TA"]
[PlyCount "84"]
[EventDate "2024.02.26"]
[EventType "team-tourn"]
[EventCountry "GEO"]
[SourceTitle "playchess.com"]
[Source "ChessBase"]
[SourceQuality "1"]
[WhiteTeam "Georgia"]
[BlackTeam "Azerbaijan"]
[WhiteTeamCountry "GEO"]
[BlackTeamCountry "AZE"]
[TimeControl "40/5400+30:1800+30"]

{[%evp 9,84,3,8,11,6,12,8,0,7,0,0,0,0,0,11,0,0,-21,-10,-15,0,-10,5,0,50,27,41,33,68,85,78,77,61,79,74,56,50,55,129,138,135,126,120,123,280,288,397,423,402,417,383,346,415,429,418,155,56,42,46,15,12,23,16,0,0,0,0,0,0,0,8,0,0,0,0,0,0]} 1. c4 {[%emt 0:00:09]} Nf6 {[%emt 0:00:20]} 2. Nc3 {[%emt 0:00:16]} e5 {[%emt 0:00:08]} 3. Nf3 {[%emt 0:00:15]} Nc6 {[%emt 0:00:25]} 4. e4 {[%emt 0:00:27]} Bb4 {[%emt 0:00:55]} 5. d3 {[%emt 0:00:10]} d6 {[%emt 0:00:49]} 6. a3 {[%emt 0:00:16]} Bc5 {[%emt 0:00:27]} 7. b4 {[%emt 0:00:18]} Bb6 {[%emt 0:02:10]} 8. Na4 {[%emt 0:00:08]} Bd4 {[%emt 0:07:25]} 9. Nxd4 {[%emt 0:00:25]} Nxd4 {[%emt 0:01:18]} 10. Be2 {[%emt 0:02:35]} O-O {[%emt 0:00:51]} 11. O-O {[%emt 0:04:12]} c6 {[%emt 0:16:02]} 12. Nc3 {[%emt 0:02:39]} a5 {[%emt 0:04:05]} 13. Rb1 {[%emt 0:06:11]} axb4 {[%emt 0:03:06]} 14. axb4 {[%emt 0:00:07]} h6 {[%emt 0:02:48]} 15. f4 {[%emt 0:04:04]} exf4 {[%emt 0:12:37]} 16. Rxf4 {[%emt 0:05:18]} Ne6 {[%emt 0:00:26]} (16... Nxe2+ $11 17. Nxe2 Ng4) 17. Rf2 $14 {[%emt 0:05:41]} d5 {[%emt 0:01:35]} 18. cxd5 {[%emt 0:12:31]} cxd5 {[%emt 0:00:06]} 19. e5 {[%emt 0:01:42]} Nd7 {[%emt 0:02:27]} 20. d4 {[%emt 0:00:54]} (20. Nxd5 Nxe5 21. Ne3 Nd4 $15) 20... Nb6 {[%emt 0:03:37]} 21. Qd3 {[%emt 0:05:10]} Qh4 {[%emt 0:09:07]} 22. Be3 {[%emt 0:04:00]} Nc4 {[%emt 0:00:53]} 23. Nxd5 {[%emt 0:17:00]} (23. g3 $5 Qd8 $8 24. h4 $11) 23... Nxe3 {[%emt 0:00:42]} (23... b5 $1 $14) 24. Qxe3 $16 {[%emt 0:00:03] Threatens to win with Nb6.} Nxd4 {[%emt 0:02:07]} 25. Bd3 {[%emt 0:13:45]} Ne6 {[%emt 0:02:47] Prevents Rf4.} 26. Rbf1 {[%emt 0:04:19][%cal Bb1f1,Bf1f6,Bf6d6][%mdl 32]} Qd8 $2 {[%emt 0:10:50] [#]} (26... Bd7 $16 {might work better.}) 27. Rd2 $1 $18 {[%emt 0:05:04] Bb1 is the strong threat.} Kh8 {[%emt 0:02:10] [#]} (27... Qxd5 28. Bh7+ Kxh7 29. Rxd5 $18) (27... Qh4 28. g3) 28. Rf6 $3 {[%emt 0:02:01][%cal Of6h6][%mdl 512] White wants to mate with Rxh6+!} Ng5 {[%emt 0:00:37]} ({And not} 28... gxf6 29. Qxh6+ Kg8 30. Qh7#) ({Worse is} 28... Qxd5 29. Rxh6+ Kg8 30. Rh8+ (30. Bh7+ Kh8 31. Bf5+ Kg8) 30... Kxh8 31. Qh3+ Kg8 32. Qh7#) 29. Rd6 {[%emt 0:00:51]} Ra1+ {[%emt 0:01:39]} 30. Kf2 {[%emt 0:02:13]} Qe8 {[%emt 0:04:12]} 31. h4 {[%emt 0:00:57]} Ne6 {[%emt 0:00:08] [#]} 32. Nf6 $2 {[%emt 0:01:48]} Qa4 $16 {[%emt 0:00:57] [#]} 33. Qe4 {[%emt 0:00:25]} g6 {[%emt 0:00:12]} (33... Qa7+ 34. Kg3) 34. Bc2 {[%emt 0:01:03]} Qa7+ {[%emt 0:00:51]} 35. Kg3 {[%emt 0:00:01]} Rf1 {[%emt 0:01:42]} 36. Nd5 {[%emt 0:00:24] The position is equal.} Ng7 {[%emt 0:00:56] ( -> ...Nh5+)} 37. Qe3 {[%emt 0:00:19] Active counter play!} Nh5+ {[%emt 0:04:01]} 38. Kh2 {[%emt 0:00:01] The board is on fire.} Qxe3 {[%emt 0:01:15]} 39. Nxe3 {[%emt 0:00:01]} Re1 $1 {[%emt 0:01:25]} 40. Rd8 {[%emt 0:00:00]} Kg7 {[%emt 0:00:00]} 41. Rxf8 {[%emt 0:06:06]} Kxf8 {[%emt 0:00:23]} 42. Rd8+ {[%emt 0:02:07]} Kg7 {[%emt 0:19:28] Blacks defense is rewarded with a draw.   Weighted Error Value: White=0.16 (very precise) /Black=0.16 (very precise) .  Missed win:     	White=1     	---        Mistake:       	---       	Black=3      Inaccurate:     	White=1     	Black=2      OK:         	White=17    	Black=17     Best:        	White=4     	Black=2      Strong:       	---       	Black=1      Brilliant:      	White=1     	---} 1/2-1/2

[Event "GEO-AZE Women Match 2024"]
[Site "Tbilisi"]
[Date "2024.02.29"]
[Round "3.1"]
[White "Mammadzada, Gunay"]
[Black "Batsiashvili, Nino"]
[Result "1/2-1/2"]
[ECO "D33"]
[WhiteElo "2449"]
[BlackElo "2451"]
[Annotator "TA"]
[PlyCount "34"]
[EventDate "2024.02.26"]
[EventType "team-tourn"]
[EventCountry "GEO"]
[SourceTitle "playchess.com"]
[Source "ChessBase"]
[SourceQuality "1"]
[WhiteTeam "Azerbaijan"]
[BlackTeam "Georgia"]
[WhiteTeamCountry "AZE"]
[BlackTeamCountry "GEO"]
[TimeControl "40/5400+30:1800+30"]

{[%evp 16,34,30,29,22,29,18,35,32,36,48,39,56,43,42,44,48,45,72,54,58]} 1. Nf3 {[%emt 0:00:01]} Nf6 {[%emt 0:00:08]} 2. c4 {[%emt 0:00:05]} c5 {[%emt 0:00:04]} 3. Nc3 {[%emt 0:00:12]} e6 {[%emt 0:00:05][%cal Be7e6,Be6d5,Bd5d4][%mdl 32]} 4. g3 {[%emt 0:00:16]} d5 {[%emt 0:00:05]} 5. cxd5 {[%emt 0:00:40]} exd5 {[%emt 0:00:05]} 6. d4 {[%emt 0:00:07]} Nc6 {[%emt 0:01:10]} 7. Bg2 {[%emt 0:00:56]} cxd4 {[%emt 0:00:15]} 8. Nxd4 {[%emt 0:00:27]} Bc5 {[%emt 0:00:06]} 9. Nb3 {[%emt 0:00:05][%csl LRc5,LRd5]} Bb6 {[%emt 0:00:05]} 10. O-O {[%emt 0:00:14][%cal Oc1g5]} d4 {[%emt 0:00:12]} 11. Na4 {[%emt 0:00:59]} O-O {[%emt 0:00:08]} 12. Bg5 {[%emt 0:00:13]} h6 {[%emt 0:00:29]} 13. Bxf6 {[%emt 0:04:10]} Qxf6 {[%emt 0:00:05]} 14. Nxb6 {[%emt 0:00:42]} axb6 {[%emt 0:00:01]} 15. Bxc6 {[%emt 0:01:03]} bxc6 {[%emt 0:00:04]} 16. Qxd4 {[%emt 0:00:08]} Rd8 {[%emt 0:00:05]} 17. Qxf6 {[%emt 0:19:32]} gxf6 {[%emt 0:02:22] Weighted Error Value: White=0.04 (flawless) /Black=0.08 (flawless) .  Inaccurate:     	---       	Black=1      OK:         	White=5     	Black=2} 1/2-1/2

[Event "GEO-AZE Women Match 2024"]
[Site "Tbilisi"]
[Date "2024.02.29"]
[Round "3.2"]
[White "Fataliyeva, Ulviyya"]
[Black "Javakhishvili, Lela"]
[Result "1-0"]
[ECO "D02"]
[WhiteElo "2384"]
[BlackElo "2433"]
[Annotator "RC"]
[PlyCount "119"]
[EventDate "2024.02.26"]
[EventType "team-tourn"]
[EventCountry "GEO"]
[SourceTitle "playchess.com"]
[Source "ChessBase"]
[SourceQuality "1"]
[WhiteTeam "Azerbaijan"]
[BlackTeam "Georgia"]
[WhiteTeamCountry "AZE"]
[BlackTeamCountry "GEO"]
[TimeControl "40/5400+30:1800+30"]

1. d4 {[%emt 0:00:03]} Nf6 {[%emt 0:00:16]} 2. Nf3 {[%emt 0:00:06]} e6 {[%emt 0:01:03]} 3. Bf4 {[%emt 0:00:44]} d5 {[%emt 0:00:48]} 4. Nbd2 {[%emt 0:02:41]} c5 {[%emt 0:00:37]} 5. e3 {[%emt 0:00:30]} Nc6 {[%emt 0:00:09]} 6. c3 {[%emt 0:00:28]} cxd4 {[%emt 0:00:13]} 7. exd4 {[%emt 0:00:05]} Nh5 {[%emt 0:00:07]} 8. Be3 {[%emt 0:00:12]} Bd6 {[%emt 0:00:12]} 9. Ne5 {[%emt 0:00:10]} Nf6 {[%emt 0:00:17]} 10. Ndf3 {[%emt 0:00:12]} Nd7 {[%emt 0:00:34]} 11. Nxd7 {[%emt 0:00:14]} Bxd7 {[%emt 0:00:06]} 12. Bd3 {[%emt 0:01:11]} O-O {[%emt 0:00:27]} 13. O-O {[%emt 0:02:54]} a6 {[%emt 0:15:53]} 14. a4 {[%emt 0:05:26]} Rc8 {[%emt 0:02:04]} 15. Re1 {[%emt 0:01:35]} Re8 {[%emt 0:03:07]} 16. Ng5 {[%emt 0:11:57]} g6 {[%emt 0:00:38]} 17. Qf3 {[%emt 0:02:48]} Qe7 {[%emt 0:02:10]} 18. Bf4 {[%emt 0:04:12]} Bxf4 {[%emt 0:01:16]} 19. Qxf4 {[%emt 0:00:08]} f6 {[%emt 0:00:43]} 20. Nf3 {[%emt 0:02:02]} e5 {[%emt 0:01:25]} 21. dxe5 {[%emt 0:01:12]} fxe5 {[%emt 0:00:11]} 22. Qg3 {[%emt 0:01:36]} e4 {[%emt 0:04:40]} 23. Bb1 {[%emt 0:04:38]} Qf6 {[%emt 0:03:13]} 24. Nd2 {[%emt 0:01:12]} Kg7 {[%emt 0:09:32]} 25. Ba2 {[%emt 0:03:53]} Ne7 {[%emt 0:01:02]} 26. Nf1 {[%emt 0:00:14]} Nf5 {[%emt 0:10:42]} 27. Qf4 {[%emt 0:00:34]} g5 {[%emt 0:09:05]} 28. Qg4 {[%emt 0:06:59]} Be6 {[%emt 0:10:36]} 29. Ng3 {[%emt 0:02:55]} Kh8 {[%emt 0:02:52]} 30. Bxd5 {[%emt 0:09:53]} Ne3 {[%emt 0:04:43]} 31. Nxe4 {[%emt 0:02:09]} Qg6 {[%emt 0:09:34]} 32. Qxg5 {[%emt 0:03:06]} Nxd5 {[%emt 0:03:12]} 33. Qxg6 {[%emt 0:05:38]} hxg6 {[%emt 0:00:01]} 34. Nd6 {[%emt 0:00:25]} Nc7 {[%emt 0:01:38]} 35. Rad1 {[%emt 0:03:20]} Kg7 {[%emt 0:02:02]} 36. Nxc8 {[%emt 0:01:51]} Rxc8 {[%emt 0:00:03]} 37. Rd6 {[%emt 0:00:50]} Kf7 {[%emt 0:00:30]} 38. Re5 {[%emt 0:00:50]} Ke7 {[%emt 0:02:08]} 39. Rb6 {[%emt 0:02:31]} Rb8 {[%emt 0:00:03]} 40. c4 {[%emt 0:00:00]} Kf6 {[%emt 0:00:00]} 41. f4 {[%emt 0:08:10]} Kf7 {[%emt 0:01:46]} 42. Rc5 {[%emt 0:03:29]} Na8 {[%emt 0:02:38]} 43. Rb3 {[%emt 0:01:46]} Ke7 {[%emt 0:03:51]} 44. a5 {[%emt 0:02:04]} Kd6 {[%emt 0:04:15]} 45. Rg5 {[%emt 0:00:09]} Bf7 {[%emt 0:01:05]} 46. Rd3+ {[%emt 0:01:57]} Ke7 {[%emt 0:03:37]} 47. Re5+ {[%emt 0:00:36]} Be6 {[%emt 0:01:47]} 48. Rc5 {[%emt 0:06:09]} Rf8 {[%emt 0:00:48]} 49. Rb3 {[%emt 0:00:36]} Rxf4 {[%emt 0:02:58]} 50. Rxb7+ {[%emt 0:01:39]} Kd6 {[%emt 0:00:05]} 51. Rg5 {[%emt 0:00:27]} Bf5 {[%emt 0:03:16]} 52. b3 {[%emt 0:04:49]} Nc7 {[%emt 0:01:23]} 53. Rb6+ {[%emt 0:00:21]} Kd7 {[%emt 0:00:26]} 54. Rg3 {[%emt 0:00:53]} Rd4 {[%emt 0:00:31]} 55. h3 {[%emt 0:01:16]} Rd1+ {[%emt 0:01:45]} 56. Kh2 {[%emt 0:00:09]} Rd2 {[%emt 0:01:22]} 57. Re3 {[%emt 0:00:25]} Rc2 {[%emt 0:02:19]} 58. Kg1 {[%emt 0:02:49]} Be6 {[%emt 0:02:43]} 59. Rb7 {[%emt 0:01:32]} Bf7 {[%emt 0:00:05]} 60. Rxc7+ {[%emt 0:00:14]} 1-0

[Event "GEO-AZE Women Match 2024"]
[Site "Tbilisi"]
[Date "2024.02.29"]
[Round "3.3"]
[White "Beydullayeva, Govhar"]
[Black "Melia, Salome"]
[Result "1/2-1/2"]
[ECO "D36"]
[WhiteElo "2374"]
[BlackElo "2355"]
[Annotator "TA"]
[PlyCount "53"]
[EventDate "2024.02.26"]
[EventType "team-tourn"]
[EventCountry "GEO"]
[SourceTitle "playchess.com"]
[Source "ChessBase"]
[SourceQuality "1"]
[WhiteTeam "Azerbaijan"]
[BlackTeam "Georgia"]
[WhiteTeamCountry "AZE"]
[BlackTeamCountry "GEO"]
[TimeControl "40/5400+30:1800+30"]

{[%evp 25,53,10,14,0,0,-9,-8,-9,-7,-10,-7,-5,-3,-10,0,0,0,-1,0,-7,0,0,0,-7,-7,-7,0,0,0,0]} 1. d4 {[%emt 0:00:04]} Nf6 {[%emt 0:00:15]} 2. c4 {[%emt 0:00:12]} e6 {[%emt 0:00:05]} 3. Nf3 {[%emt 0:00:08]} d5 {[%emt 0:00:23]} 4. Nc3 {[%emt 0:00:13]} Nbd7 {[%emt 0:00:30]} 5. cxd5 {[%emt 0:00:35]} exd5 {[%emt 0:00:06]} 6. Qc2 {[%emt 0:00:08]} c6 {[%emt 0:00:41]} 7. Bg5 {[%emt 0:01:00]} h6 {[%emt 0:00:48]} 8. Bh4 {[%emt 0:00:24]} Be7 {[%emt 0:00:06]} 9. e3 {[%emt 0:00:37]} O-O {[%emt 0:00:12]} 10. Bd3 {[%emt 0:01:20]} Re8 {[%emt 0:00:06]} 11. O-O {[%emt 0:13:25]} Ne4 {[%emt 0:00:17][%cal Bf6e4,Be4d6,Bd6f5][%mdl 32]} 12. Bxe7 {[%emt 0:00:20]} Qxe7 {[%emt 0:00:12]} 13. Rab1 {[%emt 0:01:49]} Ndf6 {[%emt 0:03:12][%cal Bd7f6,Bf6h7,Bh7g5,Bg5e4][%mdl 32] Die Stellung ist ausgeglichen.} 14. h3 {[%emt 0:04:56]} Bf5 {[%emt 0:10:36]} 15. Ne2 {[%emt 0:05:53]} Bh7 {[%emt 0:01:21]} 16. Rbc1 {[%emt 0:18:11]} Nd6 {[%emt 0:04:25]} 17. Bxh7+ {[%emt 0:01:25]} Nxh7 {[%emt 0:00:03]} 18. Nf4 {[%emt 0:01:04]} Ng5 {[%emt 0:01:57]} 19. Ne5 {[%emt 0:00:55]} Nge4 {[%emt 0:05:59]} 20. Rfe1 {[%emt 0:02:57]} Nf5 {[%emt 0:05:48]} 21. a3 {[%emt 0:10:58]} a5 {[%emt 0:04:18]} 22. Nfd3 {[%emt 0:03:55]} h5 {[%emt 0:04:13]} 23. Nc5 {[%emt 0:07:23]} Nfd6 {[%emt 0:03:52]} 24. a4 {[%emt 0:02:21]} Nxc5 {[%emt 0:08:19]} 25. Qxc5 {[%emt 0:00:06]} h4 {[%emt 0:00:14]} 26. b3 {[%emt 0:02:34]} g6 {[%emt 0:04:22]} 27. Qc2 {[%emt 0:08:25] Nicht viel passiert in dieser Partie.   Gewichteter Fehlerwert: Weiß=0.04 (makellos) /Schwarz=0.02 (makellos) .  OK:         	Weiß=5     	Schwarz=4} 1/2-1/2

[Event "GEO-AZE Women Match 2024"]
[Site "Tbilisi"]
[Date "2024.02.29"]
[Round "3.4"]
[White "Mammadova, Gulnar"]
[Black "Khotenashvili, Bella"]
[Result "1/2-1/2"]
[ECO "B12"]
[WhiteElo "2351"]
[BlackElo "2467"]
[Annotator "TA"]
[PlyCount "55"]
[EventDate "2024.02.26"]
[EventType "team-tourn"]
[EventCountry "GEO"]
[SourceTitle "playchess.com"]
[Source "ChessBase"]
[SourceQuality "1"]
[WhiteTeam "Azerbaijan"]
[BlackTeam "Georgia"]
[WhiteTeamCountry "AZE"]
[BlackTeamCountry "GEO"]
[TimeControl "40/5400+30:1800+30"]

{[%evp 11,55,18,37,48,60,35,44,42,45,38,73,63,68,64,82,52,70,66,99,67,66,48,48,15,31,0,0,0,0,0,0,0,0,0,0,0,0,0,0,0,0,0,0,0,0,-10]} 1. e4 {[%emt 0:00:03]} c6 {[%emt 0:00:17]} 2. d4 {[%emt 0:00:12]} d5 {[%emt 0:00:05]} 3. e5 {[%emt 0:00:08]} Bf5 {[%emt 0:00:05]} 4. Nf3 {[%emt 0:00:22]} e6 {[%emt 0:00:13]} 5. Be2 {[%emt 0:00:13]} Nd7 {[%emt 0:00:33]} 6. O-O {[%emt 0:00:17]} h5 {[%emt 0:02:21]} 7. a4 {[%emt 0:00:31]} Nh6 {[%emt 0:00:50]} 8. c3 {[%emt 0:06:08]} a5 {[%emt 0:05:03]} 9. Na3 {[%emt 0:02:39] White is slightly better.} Be7 {[%emt 0:01:40]} 10. Nc2 {[%emt 0:00:36]} Bxc2 {[%emt 0:13:02]} 11. Qxc2 {[%emt 0:00:13]} Nf5 {[%emt 0:00:06]} 12. Bd3 {[%emt 0:02:19]} g6 {[%emt 0:00:14]} 13. Be3 {[%emt 0:04:05]} h4 {[%emt 0:17:54]} 14. h3 {[%emt 0:04:29]} Kf8 {[%emt 0:00:19]} 15. Qd2 {[%emt 0:04:24]} Kg7 {[%emt 0:07:03]} 16. b4 {[%emt 0:08:41]} Nb6 {[%emt 0:05:36][%cal Bd7b6,Bb6a4,Ba4c3][%mdl 32]} 17. bxa5 {[%emt 0:10:04]} Rxa5 {[%emt 0:04:10]} 18. Rfb1 {[%emt 0:01:46]} Nxe3 {[%emt 0:17:16] The position is equal.} 19. fxe3 {[%emt 0:04:23][%cal Oc3c4]} Qc7 $1 {[%emt 0:00:21]} 20. Qb2 {[%emt 0:02:01]} Rxa4 {[%emt 0:04:39]} 21. Rxa4 {[%emt 0:02:12]} (21. Qxb6 $2 {too greedy.} Qxb6 22. Rxa4 Qc7 $19) 21... Nxa4 {[%emt 0:00:02]} 22. Qxb7 {[%emt 0:00:21]} Qxb7 {[%emt 0:02:24]} 23. Rxb7 {[%emt 0:00:32]} Re8 {[%emt 0:01:14]} 24. c4 {[%emt 0:05:27]} dxc4 {[%emt 0:00:42]} 25. Bxc4 {[%emt 0:00:16]} Nc3 {[%emt 0:02:54]} 26. Rb3 {[%emt 0:07:08]} Nd5 {[%emt 0:00:38]} 27. e4 {[%emt 0:03:26]} Nb4 {[%emt 0:04:09]} 28. Rb2 {[%emt 0:04:39] Weighted Error Value: White=0.12 (very precise) /Black=0.06 (flawless) .  Inaccurate:     	White=4     	Black=2      OK:         	White=5     	Black=7      Best:        	---       	Black=3      Strong:       	---       	Black=1} 1/2-1/2

[Event "GEO-AZE Women Match 2024"]
[Site "Tbilisi"]
[Date "2024.02.29"]
[Round "3.5"]
[White "Balajayeva, Khanim"]
[Black "Arabidze, Meri"]
[Result "1/2-1/2"]
[ECO "C66"]
[WhiteElo "2350"]
[BlackElo "2466"]
[Annotator "TA"]
[PlyCount "86"]
[EventDate "2024.02.26"]
[EventType "team-tourn"]
[EventCountry "GEO"]
[SourceTitle "playchess.com"]
[Source "ChessBase"]
[SourceQuality "1"]
[WhiteTeam "Azerbaijan"]
[BlackTeam "Georgia"]
[WhiteTeamCountry "AZE"]
[BlackTeamCountry "GEO"]
[TimeControl "40/5400+30:1800+30"]

{[%evp 12,86,43,40,38,31,30,31,35,34,48,50,51,46,53,41,45,14,16,0,0,0,0,0,0,3,0,0,34,36,31,38,40,40,33,47,45,50,40,40,48,47,47,43,38,50,52,48,51,48,52,47,52,48,56,64,65,64,65,37,48,33,70,50,61,66,56,44,49,32,76,75,67,33,70,43,60]} 1. e4 {[%emt 0:00:03]} e5 {[%emt 0:00:06]} 2. Nf3 {[%emt 0:00:06]} Nc6 {[%emt 0:00:03]} 3. Bb5 {[%emt 0:00:07]} a6 {[%emt 0:00:04]} 4. Ba4 {[%emt 0:00:04]} Nf6 {[%emt 0:00:05]} 5. O-O {[%emt 0:00:09]} d6 {[%emt 0:00:04]} 6. c3 {[%emt 0:01:03]} Bd7 {[%emt 0:00:06]} 7. Re1 {[%emt 0:01:11]} g6 {[%emt 0:00:10]} 8. h3 {[%emt 0:01:41]} Bg7 {[%emt 0:00:08]} 9. d4 {[%emt 0:00:04]} O-O {[%emt 0:00:19]} 10. Bc2 {[%emt 0:00:09]} Nh5 {[%emt 0:00:25]} 11. Be3 {[%emt 0:00:45]} Kh8 {[%emt 0:00:33]} 12. Nbd2 {[%emt 0:00:20]} Qe8 {[%emt 0:00:13]} 13. Nc4 {[%emt 0:00:50]} f5 {[%emt 0:01:40]} 14. exf5 {[%emt 0:04:42]} Bxf5 {[%emt 0:00:13]} 15. dxe5 {[%emt 0:00:30] [#] Black must now prevent Bxf5.} (15. Bxf5 {with more complications.} gxf5 16. dxe5 Qf7 17. e6) 15... Bxc2 {[%emt 0:01:22]} 16. Qxc2 {[%emt 0:00:31]} Rxf3 {[%emt 0:00:33]} 17. exd6 {[%emt 0:05:26]} Rf7 {[%emt 0:01:07]} 18. dxc7 {[%emt 0:02:35]} Rxc7 {[%emt 0:01:20]} 19. Nb6 $1 {[%emt 0:01:38][%cal Oe3c5]} Rd8 {[%emt 0:02:52][%cal Oc6b4]} (19... Rb8 $5) 20. Bg5 $1 {[%emt 0:01:59][%csl LRd8,LRe8]} Ne7 {[%emt 0:01:25] Threatens to win with ...h6.} 21. Qe4 $1 {[%emt 0:02:50][%cal Rg5e7]} Nf6 {[%emt 0:01:37]} 22. Bxf6 {[%emt 0:00:08]} Bxf6 {[%emt 0:00:03] [#]} 23. Nd5 $1 {[%emt 0:00:07]} Nxd5 {[%emt 0:02:23]} (23... Rxd5 24. Qxd5) 24. Qxe8+ {[%emt 0:00:14]} Rxe8 {[%emt 0:00:01]} 25. Rxe8+ {[%emt 0:00:06]} Kg7 {[%emt 0:00:04]} 26. Re6 {[%emt 0:07:38]} Be7 {[%emt 0:11:53]} 27. g3 {[%emt 0:09:46]} Kf7 {[%emt 0:02:14]} 28. Rae1 {[%emt 0:01:09]} Bc5 {[%emt 0:03:45]} 29. Kg2 {[%emt 0:01:11]} Nf6 {[%emt 0:05:46]} 30. R6e5 {[%emt 0:04:05]} Bd6 {[%emt 0:02:22]} 31. R5e2 {[%emt 0:01:21]} Bc5 {[%emt 0:03:05]} 32. Rd1 {[%emt 0:01:53]} Nd7 {[%emt 0:03:27]} 33. f4 {[%emt 0:08:45]} a5 {[%emt 0:04:02]} 34. g4 {[%emt 0:04:48] White is more active.} Nb6 {[%emt 0:06:54]} 35. Re4 {[%emt 0:09:08]} Be7 {[%emt 0:06:17]} 36. f5 {[%emt 0:08:11]} Nc4 {[%emt 0:05:00]} 37. b3 {[%emt 0:01:12]} Nd6 {[%emt 0:01:30]} 38. fxg6+ {[%emt 0:00:41]} hxg6 {[%emt 0:00:07]} 39. Rf4+ {[%emt 0:01:14]} Kg7 {[%emt 0:03:29]} 40. c4 {[%emt 0:00:00]} b6 {[%emt 0:00:00]} 41. Rfd4 {[%emt 0:08:24]} Rc6 {[%emt 0:16:12]} 42. Re1 {[%emt 0:01:52]} Nc8 {[%emt 0:00:43]} 43. Rd7 {[%emt 0:02:00]} Kf8 $1 {[%emt 0:48:18] Weighted Error Value: White=0.06 (flawless) /Black=0.06 (flawless) .  Inaccurate:     	White=3     	Black=4      OK:         	White=11    	Black=14     Best:        	White=2     	Black=1      Strong:       	White=2     	Black=1      Brilliant:      	White=1     	---} 1/2-1/2

[Event "GEO-AZE Women Match 2024"]
[Site "Tbilisi"]
[Date "2024.03.01"]
[Round "4.1"]
[White "Javakhishvili, Lela"]
[Black "Mammadzada, Gunay"]
[Result "1-0"]
[ECO "D43"]
[WhiteElo "2433"]
[BlackElo "2449"]
[Annotator "TA"]
[PlyCount "59"]
[EventDate "2024.02.26"]
[EventType "team-tourn"]
[EventCountry "GEO"]
[SourceTitle "playchess.com"]
[Source "ChessBase"]
[SourceQuality "1"]
[WhiteTeam "Georgia"]
[BlackTeam "Azerbaijan"]
[WhiteTeamCountry "GEO"]
[BlackTeamCountry "AZE"]
[TimeControl "40/5400+30:1800+30"]

{[%evp 12,59,13,12,15,11,8,0,15,3,7,11,59,54,69,47,71,64,72,60,73,66,77,58,94,84,110,114,128,131,134,96,98,112,125,129,172,173,350,327,329,311,341,288,281,191,308,215,1026,1016]} 1. d4 {[%emt 0:00:06]} d5 {[%emt 0:00:08]} 2. c4 {[%emt 0:00:11]} c6 {[%emt 0:00:05]} 3. Nf3 {[%emt 0:00:06]} Nf6 {[%emt 0:00:03]} 4. Qb3 {[%emt 0:00:15]} e6 {[%emt 0:01:47]} 5. Bg5 {[%emt 0:00:22]} Nbd7 {[%emt 0:00:17]} 6. Nc3 {[%emt 0:00:45]} Be7 {[%emt 0:00:33]} 7. e3 {[%emt 0:00:14]} h6 {[%emt 0:03:11]} 8. Bh4 {[%emt 0:00:59]} O-O {[%emt 0:00:58]} 9. Bd3 {[%emt 0:01:14]} dxc4 {[%emt 0:15:35] The position is equal.} 10. Qxc4 {[%emt 0:00:11]} a6 {[%emt 0:00:24]} 11. O-O {[%emt 0:04:42]} Nd5 {[%emt 0:11:43]} (11... c5 $11 {might be stronger.} 12. Bxf6 Bxf6 13. dxc5 Nxc5 14. Qxc5 Qxd3) 12. Bg3 $14 {[%emt 0:08:29]} N7f6 {[%emt 0:16:40]} 13. Ne5 {[%emt 0:03:21][%cal Bf3e5,Be5g4,Bg4e5][%mdl 32]} Nh5 {[%emt 0:02:28]} 14. Rac1 {[%emt 0:15:28]} Nxg3 {[%emt 0:01:11]} 15. hxg3 {[%emt 0:02:00]} Nxc3 {[%emt 0:13:27]} 16. Qxc3 {[%emt 0:02:05]} Bf6 {[%emt 0:03:56]} 17. Ng4 {[%emt 0:06:56] White has more active pieces. The black rooks are passive.} Re8 {[%emt 0:02:55][%cal Oe6e5]} 18. f4 {[%emt 0:02:59]} Be7 {[%emt 0:04:57]} 19. Bb1 {[%emt 0:03:14]} Bf8 {[%emt 0:05:16]} 20. Kf2 {[%emt 0:03:10]} a5 {[%emt 0:02:33]} 21. Qc2 {[%emt 0:04:10]} f5 {[%emt 0:01:34]} 22. Ne5 $40 {[%emt 0:00:07][%mdl 128] White goes for the king.} a4 {[%emt 0:01:00]} 23. a3 {[%emt 0:03:23]} Qd5 {[%emt 0:02:29]} 24. Qe2 {[%emt 0:04:47]} b6 $2 {[%emt 0:03:26] [#]} (24... Bd6 25. Rfd1 Qa5) 25. Qh5 $18 {[%emt 0:02:01]} (25. Nxc6 Bb7 26. Qc4 Qxc4 27. Rxc4 Ba6 $11) 25... Re7 {[%emt 0:00:03] Repels Qf7+} 26. g4 {[%emt 0:06:03]} (26. Rxc6 Bb7 27. Rfc1 (27. Rxb6 $2 Qxg2+ 28. Ke1 Rc8 $19) 27... Rc8 28. Rxc8 Qxg2+ 29. Ke1 Bxc8 $16) (26. Nxc6 Rc7) 26... c5 {[%emt 0:00:20]} 27. gxf5 {[%emt 0:00:58]} exf5 {[%emt 0:03:02]} 28. Bd3 {[%emt 0:02:02][%cal Bb1d3,Bd3c4,Bc4e6][%mdl 32] [#] Hoping for Bc4.} ({Worse is} 28. Bxf5 Bxf5 29. Qxf5 cxd4 $11) 28... Be6 {[%emt 0:00:59]} (28... cxd4 $2 {perishes.} 29. Bc4 dxe3+ 30. Kxe3 $18) (28... Ba6 {was necessary.}) 29. Bc4 {[%emt 0:00:37]} (29. Bxf5 Bxf5 30. Qxf5 cxd4 $11) 29... Qe4 {[%emt 0:00:14]} (29... Qb7 30. Qxf5 Bxc4 31. Rxc4 Qd5) 30. Bxe6+ {[%emt 0:00:21] Weighted Error Value: White=0.19 (very precise) /Black=0.31.  Mistake:       	---       	Black=4      Inaccurate:     	White=2     	Black=3      OK:         	White=11    	Black=4      Best:        	White=1     	---} 1-0